[Event "BL 2024-25"]
[Site "Austria"]
[Date "2024.10.12"]
[Round "4.31"]
[White "Kadric, Denis"]
[Black "Nisipeanu, Liviu-Dieter"]
[Result "1/2-1/2"]
[Annotator "TA"]
[ECO "C55"]
[WhiteElo "2558"]
[BlackElo "2584"]
[PlyCount "123"]
[EventDate "2024.08.28"]
[EventType "team-tourn"]
[EventCountry "AUT"]
[SourceTitle "playchess.com"]
[Source "ChessBase"]
[SourceQuality "1"]
[WhiteTeam "Pinggau-Friedberg"]
[BlackTeam "Mayrhofen-Zell-Ziller"]
[TimeControl "40/5400+30:1800+30"]

{[%evp 55,123,-161,-151,-225,-220,-528,-166,-166,-138,-163,-56,-71,-51,-45,0,-70,-86,-61,-86,-104,-112,-106,-106,-106,-102,-107,-106,-114,-114,-114,-114,-114,-114,-114,-114,-117,-120,-154,-153,-178,-153,-200,-200,-227,-229,-233,-219,-207,-113,-104,-104,-106,-64,-152,-93,-241,-208,-237,-64,-64,-64,-183,-156,-181,-64,-64,0,0,0,0]} 1. e4 {[%emt 0:00:02]} e5 {[%emt 0:00:07]} 2. Nf3 {[%emt 0:00:04]} Nc6 {[%emt 0:00:06]} 3. Bc4 {[%emt 0:00:02]} Nf6 {[%emt 0:00:07]} 4. d3 {[%emt 0:00:02]} Be7 {[%emt 0:00:08]} 5. Nc3 {[%emt 0:02:21]} d6 {[%emt 0:00:18]} 6. a3 {[%emt 0:00:07]} O-O {[%emt 0:00:07] C55: Two Knights: 4 d3, 4 d4 exd4 5 e5 and Max Lange Attack.} 7. Be3 {[%emt 0:00:09]} Be6 {[%emt 0:00:46]} 8. Ng5 {[%emt 0:00:05]} Bxc4 {[%emt 0:04:34]} 9. dxc4 {[%emt 0:01:05]} Nb8 {[%emt 0:01:41]} 10. Qe2 $146 {[%emt 0:01:06]} ({Predecessor:} 10. h3 Nbd7 11. Qe2 c6 12. O-O-O a6 13. f4 Qa5 14. Bd2 Qc7 15. Nf3 b5 16. g4 {0-1 So,W (2752)-Lazavik,D (2578) Julius Baer GenCup D2 W rapid 2024 (5.3)}) 10... Nbd7 {[%emt 0:00:34]} 11. O-O-O {[%emt 0:02:01]} c6 {[%emt 0:00:17]} 12. Rhg1 {[%emt 0:04:34]} Qa5 {[%emt 0:15:15]} 13. Nf3 {[%emt 0:11:53]} d5 {[%emt 0:09:58]} 14. Bd2 {[%emt 0:00:51]} d4 {[%emt 0:14:03]} 15. Nd5 {[%emt 0:00:05]} Qd8 {[%emt 0:00:03]} 16. Nxf6+ {[%emt 0:03:42]} Bxf6 {[%emt 0:00:08]} 17. g4 {[%emt 0:00:01]} Qe8 {[%emt 0:13:49]} 18. h4 {[%emt 0:11:23]} Qe6 {[%emt 0:00:21]} 19. Kb1 {[%emt 0:03:23]} Rab8 {[%emt 0:04:19]} 20. c3 {[%emt 0:05:29]} b5 {[%emt 0:09:17]} 21. cxd4 {[%emt 0:04:29]} exd4 {[%emt 0:00:17]} 22. Bc1 {[%emt 0:30:58]} c5 {[%emt 0:04:44]} 23. cxb5 {[%emt 0:00:11]} Nb6 {[%emt 0:00:08]} 24. Qc2 {[%emt 0:01:58]} Nc4 {[%emt 0:01:29]} 25. Rd3 {[%emt 0:15:24]} Rxb5 {[%emt 0:00:40]} 26. g5 {[%emt 0:00:01]} Be7 {[%emt 0:01:19]} 27. Nd2 {[%emt 0:00:10]} Nxd2+ {[%emt 0:05:32]} 28. Rxd2 {[%emt 0:00:01]} Bd6 {[%emt 0:04:46]} 29. Rdd1 {[%emt 0:00:06]} (29. Rgd1 $17) 29... Rfb8 $1 $19 {[%emt 0:00:51]} 30. f4 $2 {[%emt 0:01:20]} (30. e5 Qxe5 (30... Bxe5 31. Rge1 $19) 31. Ka1) 30... c4 $2 {[%emt 0:03:04]} (30... Bxf4 31. Rg2 Bxc1 32. Rxc1 g6) 31. Rxd4 $19 {[%emt 0:00:44] [#]} Bc5 $1 {[%emt 0:00:49]} (31... Bxa3 32. Rgd1 $18) 32. f5 {[%emt 0:01:27]} Qe8 {[%emt 0:03:15]} (32... Qa6 $19 33. Rgd1 Bxd4 (33... Qxa3 34. Rd8+ Bf8 35. Rxb8 $18) (33... Bxa3 34. Rd8+ Bf8 35. Rxb8 $14) 34. Rxd4 Qxa3 35. Rxc4 Ra5 36. Rc8+ Rxc8 37. Qxc8+ Qf8) 33. Rgd1 $15 {[%emt 0:00:04]} Bxd4 {[%emt 0:00:14]} (33... Bxa3 34. Rxc4 (34. Qxc4 Bxb2 35. Bxb2 Rxb2+ 36. Ka1 R2b7 $15) 34... Bxb2 35. Bxb2 $11) 34. Rxd4 {[%emt 0:00:01]} Rc8 {[%emt 0:00:19]} 35. Rxc4 {[%emt 0:01:16]} (35. Bd2 $1 $11) 35... Rxc4 $15 {[%emt 0:02:02]} 36. Qxc4 {[%emt 0:00:01]} Re5 {[%emt 0:00:20]} 37. g6 {[%emt 0:01:11]} hxg6 {[%emt 0:00:10]} (37... Rxe4 $2 38. gxf7+ Qxf7 39. Qxe4 $18) 38. fxg6 {[%emt 0:00:02]} Qe6 {[%emt 0:00:19]} (38... Rxe4 $2 {is the wrong capture.} 39. gxf7+ Qxf7 40. Qxe4 $18) 39. gxf7+ {[%emt 0:01:05]} Qxf7 {[%emt 0:00:07]} (39... Kxf7 $2 40. Qc2 $19) 40. Qd4 {[%emt 0:00:54]} Re7 {[%emt 0:01:22]} 41. Bg5 {[%emt 0:03:55]} Rd7 {[%emt 0:00:46]} 42. Qc5 {[%emt 0:01:42]} Qe6 {[%emt 0:04:47]} 43. Qf5 {[%emt 0:05:54]} Qc6 {[%emt 0:01:23]} 44. Qf3 {[%emt 0:01:14]} Rd4 {[%emt 0:01:09]} 45. Qb3+ {[%emt 0:01:19]} Kh8 {[%emt 0:01:32]} 46. Qf7 {[%emt 0:06:06]} Qxe4+ {[%emt 0:00:57]} 47. Ka2 {[%emt 0:00:01]} Rd5 {[%emt 0:03:23]} 48. Bc1 {[%emt 0:06:42]} (48. Qf4 $17 {was necessary.} Qe6 49. Qc4) 48... a5 $19 {[%emt 0:04:18]} 49. h5 {[%emt 0:02:28]} Rf5 {[%emt 0:04:16]} 50. Qg6 {[%emt 0:00:03]} Qd5+ {[%emt 0:01:18]} 51. b3 {[%emt 0:00:03]} Rf2+ {[%emt 0:07:33]} (51... Rxh5 $19 {Hoping for ...Rh2+.} 52. Bb2 Rg5 53. Qh6+ Kg8) 52. Bb2 $17 {[%emt 0:00:13]} Qe5 {[%emt 0:00:29]} 53. Qb1 {[%emt 0:01:46]} Qxh5 {[%emt 0:00:17]} 54. a4 {[%emt 0:00:51]} (54. Qg1 $15 Rf7 55. Qg2) 54... Qd5 {[%emt 0:00:52]} (54... Qe5 $142 {...Kg8 would now be deadly.} 55. Ka3 Qc5+ 56. Ka2 Qc2 57. Qxc2 Rxc2) 55. Ka1 {[%emt 0:01:13]} (55. Qc1 $17 Rg2 56. Qc7) 55... Kg8 $19 {[%emt 0:00:36]} (55... Qxb3 56. Bxg7+ Kxg7 57. Qxb3 $18) 56. Qg6 {[%emt 0:00:40] [#]} Qd1+ $2 {[%emt 0:00:32]} ({Not} 56... Qxb3 57. Qxg7#) (56... Rg2 $1 $19 {[%cal Rg2g6]} 57. Qe8+ Kh7) 57. Ka2 $15 {[%emt 0:00:04]} Qd7 {[%emt 0:00:35]} 58. Qg5 {[%emt 0:01:41]} (58. Qe4 $15) 58... Qd4 $19 {[%emt 0:01:40]} 59. Qc1 {[%emt 0:00:03]} Qg4 {[%emt 0:04:19]} ({Black should play} 59... Rd2 $19 {aiming for ...Kf7.} 60. Ka3 Qd8) 60. Qc6 {[%emt 0:01:34]} Rh2 {[%emt 0:00:29]} (60... Qh5 $15) 61. Qd5+ $11 {[%emt 0:01:18]} Kh7 {[%emt 0:00:17]} 62. Qxa5 {[%emt 0:00:22]} 1/2-1/2

[Event "BL 2024-25"]
[Site "Austria"]
[Date "2024.10.12"]
[Round "4.32"]
[White "Vogel, Roven"]
[Black "Petrov, Nikita"]
[Result "1/2-1/2"]
[Annotator "RC"]
[ECO "A13"]
[WhiteElo "2559"]
[BlackElo "2589"]
[PlyCount "61"]
[EventDate "2024.08.28"]
[EventType "team-tourn"]
[EventCountry "AUT"]
[SourceTitle "playchess.com"]
[Source "ChessBase"]
[SourceQuality "1"]
[WhiteTeam "Mayrhofen-Zell-Ziller"]
[BlackTeam "Pinggau-Friedberg"]
[TimeControl "40/5400+30:1800+30"]

1. c4 {[%emt 0:00:04]} Nf6 {[%emt 0:00:19]} 2. g3 {[%emt 0:00:49]} e6 {[%emt 0:00:49]} 3. Bg2 {[%emt 0:00:31]} d5 {[%emt 0:00:11]} 4. Nf3 {[%emt 0:00:08]} dxc4 {[%emt 0:00:32]} 5. Qa4+ {[%emt 0:00:22]} Bd7 {[%emt 0:00:30]} 6. Qxc4 {[%emt 0:00:08]} c5 {[%emt 0:00:21]} 7. Ne5 {[%emt 0:00:25]} Qc8 {[%emt 0:00:55]} 8. Qd3 {[%emt 0:00:09]} Nc6 {[%emt 0:01:15]} 9. Nxd7 {[%emt 0:00:23]} Nxd7 {[%emt 0:00:07]} 10. Nc3 {[%emt 0:04:00]} Be7 {[%emt 0:02:11]} 11. O-O {[%emt 0:00:33]} O-O {[%emt 0:00:34]} 12. b3 {[%emt 0:01:11]} Nde5 {[%emt 0:01:36]} 13. Qe3 {[%emt 0:07:41]} Qd7 {[%emt 0:02:56]} 14. d3 {[%emt 0:04:24]} Rac8 {[%emt 0:07:05]} 15. Bb2 {[%emt 0:01:06]} b6 {[%emt 0:02:10]} 16. Rad1 {[%emt 0:00:59]} f5 {[%emt 0:02:27]} 17. Qc1 {[%emt 0:06:24]} Bf6 {[%emt 0:03:55]} 18. Qb1 {[%emt 0:01:17]} Rfd8 {[%emt 0:02:25]} 19. Nb5 {[%emt 0:09:44]} Qf7 {[%emt 0:16:13]} 20. d4 {[%emt 0:20:51]} Nxd4 {[%emt 0:03:55]} 21. Bxd4 {[%emt 0:02:05]} cxd4 {[%emt 0:00:08]} 22. Nxd4 {[%emt 0:00:32]} Rxd4 {[%emt 0:01:42]} 23. Rxd4 {[%emt 0:00:30]} Nf3+ {[%emt 0:00:02]} 24. Bxf3 {[%emt 0:00:39]} Bxd4 {[%emt 0:00:06]} 25. Qd3 {[%emt 0:01:37]} Bf6 {[%emt 0:00:41]} 26. Rd1 {[%emt 0:03:41]} g6 {[%emt 0:08:17]} 27. Qa6 {[%emt 0:00:52]} Qc7 {[%emt 0:03:00]} 28. Bb7 {[%emt 0:02:44]} Rb8 {[%emt 0:01:11]} 29. Bf3 {[%emt 0:00:46]} Rd8 {[%emt 0:03:46]} 30. Rxd8+ {[%emt 0:00:13]} Bxd8 {[%emt 0:00:04]} 31. Bb7 {[%emt 0:01:30]} 1/2-1/2

[Event "BL 2024-25"]
[Site "Austria"]
[Date "2024.10.12"]
[Round "4.33"]
[White "Erdos, Viktor"]
[Black "Votava, Jan"]
[Result "1/2-1/2"]
[Annotator "TA"]
[ECO "D97"]
[WhiteElo "2538"]
[BlackElo "2441"]
[PlyCount "41"]
[EventDate "2024.08.28"]
[EventType "team-tourn"]
[EventCountry "AUT"]
[SourceTitle "playchess.com"]
[Source "ChessBase"]
[SourceQuality "1"]
[WhiteTeam "Pinggau-Friedberg"]
[BlackTeam "Mayrhofen-Zell-Ziller"]
[TimeControl "40/5400+30:1800+30"]

{[%evp 19,41,0,0,0,0,0,0,0,0,0,0,0,0,0,0,0,34,0,0,0,24,0,0,0]} 1. d4 {[%emt 0:00:05]} Nf6 {[%emt 0:00:07]} 2. c4 {[%emt 0:00:06]} g6 {[%emt 0:00:09]} 3. Nc3 {[%emt 0:00:50]} d5 {[%emt 0:00:06]} 4. Nf3 {[%emt 0:00:06]} Bg7 {[%emt 0:00:07]} 5. Qb3 {[%emt 0:00:07]} dxc4 {[%emt 0:00:25]} 6. Qxc4 {[%emt 0:00:05]} O-O {[%emt 0:00:19]} 7. e4 {[%emt 0:00:08]} a6 {[%emt 0:01:24]} 8. Be2 {[%emt 0:00:13]} b5 {[%emt 0:01:45][%cal Bb7b5,Bb5b4][%mdl 32]} 9. Qb3 {[%emt 0:00:25]} c5 {[%emt 0:02:23]} 10. dxc5 {[%emt 0:00:15]} Be6 {[%emt 0:17:06]} 11. Qc2 {[%emt 0:02:06]} Nbd7 {[%emt 0:00:17]} 12. Be3 {[%emt 0:00:46]} Rc8 {[%emt 0:01:11]} 13. Rd1 {[%emt 0:00:16] Hoping for b4.} b4 $1 {[%emt 0:21:53]} 14. Nd5 {[%emt 0:01:18]} Bxd5 {[%emt 0:00:48]} 15. exd5 {[%emt 0:00:07][%cal Oc5c6] [#] aiming for c6!} Nxc5 {[%emt 0:00:27]} 16. O-O {[%emt 0:00:14]} ({Much worse is} 16. Bxc5 Qa5 (16... Nxd5 $2 {perishes.} 17. O-O $18) 17. Bxb4 Qxb4+ 18. Qd2 Qe4 $15 (18... Nxd5 19. O-O $15)) 16... a5 {[%emt 0:03:16]} 17. Rfe1 {[%emt 0:08:03]} Nb7 {[%emt 0:00:58] A dynamic duo of knights.} 18. Qd3 {[%emt 0:36:48]} Nc5 {[%emt 0:00:42]} 19. Qc2 {[%emt 0:01:33]} Nb7 {[%emt 0:00:23]} 20. Qd3 {[%emt 0:00:16]} Nc5 {[%emt 0:00:10]} 21. Qc2 {[%emt 0:04:26] An uneventful encounter.   Weighted Error Value: White=0.06 (flawless) /Black=0.03 (flawless) .  Inaccurate:     	---       	Black=1      OK:         	White=5     	Black=7      Best:        	---       	Black=1      Strong:       	---       	Black=1} 1/2-1/2

[Event "BL 2024-25"]
[Site "Austria"]
[Date "2024.10.12"]
[Round "4.34"]
[White "Maiwald, Jens-Uwe"]
[Black "Sankalp Gupta"]
[Result "0-1"]
[Annotator "TA"]
[ECO "C00"]
[WhiteElo "2429"]
[BlackElo "2534"]
[PlyCount "72"]
[EventDate "2024.08.28"]
[EventType "team-tourn"]
[EventCountry "AUT"]
[SourceTitle "playchess.com"]
[Source "ChessBase"]
[SourceQuality "1"]
[WhiteTeam "Mayrhofen-Zell-Ziller"]
[BlackTeam "Pinggau-Friedberg"]
[TimeControl "40/5400+30:1800+30"]

{[%evp 9,72,0,0,-15,0,4,2,0,13,1,15,16,8,6,12,5,21,-22,-38,-47,-51,-43,-33,-28,-16,-6,-16,-11,-8,-77,-15,-132,-139,-146,-131,-154,-151,-138,-139,-170,-158,-185,-160,-168,-160,-170,-159,-170,-174,-170,-166,-193,-189,-193,-185,-172,-183,-255,-295,-294,-281,-295,-285,-249,-240]} 1. e4 {[%emt 0:00:04]} e6 {[%emt 0:00:09]} 2. d3 {[%emt 0:00:39]} d5 {[%emt 0:00:12]} 3. Qe2 {[%emt 0:00:08]} Nc6 {[%emt 0:01:22]} 4. Nf3 {[%emt 0:00:30]} e5 {[%emt 0:03:39]} 5. exd5 {[%emt 0:01:27]} Qxd5 {[%emt 0:00:05]} 6. Nc3 {[%emt 0:00:11]} Bb4 {[%emt 0:03:47]} 7. Bd2 {[%emt 0:00:52]} Bxc3 {[%emt 0:04:15]} 8. Bxc3 {[%emt 0:00:07] Die Stellung ist ausgeglichen.} Bg4 {[%emt 0:00:05]} 9. h3 {[%emt 0:04:45]} Bxf3 {[%emt 0:00:51]} 10. Qxf3 {[%emt 0:00:07]} Qxf3 {[%emt 0:00:14]} 11. gxf3 {[%emt 0:00:07][%cal Of3f4]} f6 {[%emt 0:01:13] [#]} 12. f4 $1 {[%emt 0:04:38]} exf4 {[%emt 0:02:14]} 13. Rg1 {[%emt 0:00:24]} Kf7 {[%emt 0:02:23]} 14. Bg2 {[%emt 0:20:46]} Nge7 {[%emt 0:01:07] Wehrt Bd5+ ab} 15. O-O-O {[%emt 0:01:21]} Rad8 {[%emt 0:04:14]} 16. Rde1 {[%emt 0:02:47]} g5 {[%emt 0:03:19]} 17. h4 {[%emt 0:02:49]} h6 {[%emt 0:01:57]} 18. Bf3 {[%emt 0:12:11]} (18. hxg5 hxg5 19. Be4 Rh2 $17) 18... Ng6 {[%emt 0:09:19]} 19. Bh5 {[%emt 0:01:33] Das Läuferpaar ist gut.} (19. Re4 $11) 19... Rde8 {[%emt 0:00:31]} ({Besser ist} 19... Nd4 $1 $17) 20. Re4 {[%emt 0:02:43] Schwarz hat alles unter Kontrolle.} (20. Rxe8 $11 Rxe8 21. a4) 20... Rxe4 $17 {[%emt 0:05:35]} 21. dxe4 {[%emt 0:00:04]} Re8 {[%emt 0:00:28]} 22. f3 {[%emt 0:10:32]} Nce5 {[%emt 0:00:36]} 23. b3 {[%emt 0:06:07]} Re7 {[%emt 0:04:55]} (23... gxh4 $2 {zu gefräßig.} 24. Bxe5 Rxe5 25. Bxg6+ Ke6 26. Bf5+ Kd6 27. Rg6 $18) 24. Be1 {[%emt 0:06:50]} Ke6 {[%emt 0:00:51]} 25. Bf2 {[%emt 0:00:41]} Nxh4 {[%emt 0:13:41]} 26. Bxh4 {[%emt 0:00:21]} gxh4 $19 {[%emt 0:00:02][%mdl 4096] Endspiel. KRB-KRN} 27. Rh1 {[%emt 0:07:34]} Rg7 $1 {[%emt 0:00:17]} 28. Rxh4 {[%emt 0:00:06]} Rg5 $1 {[%emt 0:00:18]} 29. Kd1 {[%emt 0:00:06] [#]} f5 $1 {[%emt 0:01:39]} 30. exf5+ {[%emt 0:01:29]} Kxf5 {[%emt 0:00:21]} 31. Rh2 {[%emt 0:00:07]} Rg3 {[%emt 0:06:15]} 32. Ke2 {[%emt 0:01:02]} Rg1 {[%emt 0:05:42]} 33. Be8 {[%emt 0:05:09] [#]} (33. a4 $142) 33... Re1+ $3 {[%emt 0:01:14][%mdl 512]} 34. Kf2 {[%emt 0:00:04] Und Rh5+ würde nun gewinnen.} Rc1 {[%emt 0:00:05]} ({Schwächer ist} 34... Nxf3 35. Bd7+ Ke4 36. Rxh6 $11) 35. Rh5+ {[%emt 0:00:18]} Kf6 {[%emt 0:01:59]} 36. Rxh6+ {[%emt 0:00:29]} Ke7 {[%emt 0:01:05] Gewichteter Fehlerwert: Weiß=0.20 (präzise) /Schwarz=0.07 (makellos) .  Fehler:       	Weiß=3     	Schwarz=1     Ungenau:       	Weiß=1     	---        OK:         	Weiß=10    	Schwarz=13    Bester:       	Weiß=3     	Schwarz=2     Stark:        	---       	Schwarz=2     Brilliant:      	---       	Schwarz=1} 0-1

[Event "BL 2024-25"]
[Site "Austria"]
[Date "2024.10.12"]
[Round "4.35"]
[White "Perunovic, Milos"]
[Black "Platzgummer, Fabian"]
[Result "1/2-1/2"]
[Annotator "TA"]
[ECO "B33"]
[WhiteElo "2525"]
[BlackElo "2301"]
[PlyCount "60"]
[EventDate "2024.08.28"]
[EventType "team-tourn"]
[EventCountry "AUT"]
[SourceTitle "playchess.com"]
[Source "ChessBase"]
[SourceQuality "1"]
[WhiteTeam "Pinggau-Friedberg"]
[BlackTeam "Mayrhofen-Zell-Ziller"]
[TimeControl "40/5400+30:1800+30"]

{[%evp 29,60,48,39,31,60,26,29,25,30,24,23,22,40,50,47,52,66,35,32,0,0,0,0,0,0,0,0,0,0,0,0,0,0]} 1. e4 {[%emt 0:00:07]} c5 {[%emt 0:00:18]} 2. Nf3 {[%emt 0:00:36]} Nc6 {[%emt 0:00:30]} 3. d4 {[%emt 0:04:33]} cxd4 {[%emt 0:00:17]} 4. Nxd4 {[%emt 0:00:06]} Nf6 {[%emt 0:00:10]} 5. Nc3 {[%emt 0:00:06]} e5 {[%emt 0:00:54]} 6. Ndb5 {[%emt 0:00:07]} d6 {[%emt 0:00:07]} 7. Bg5 {[%emt 0:00:05]} a6 {[%emt 0:00:08]} 8. Na3 {[%emt 0:00:07]} b5 {[%emt 0:00:15]} 9. Bxf6 {[%emt 0:00:43]} gxf6 {[%emt 0:00:10]} 10. Nd5 {[%emt 0:00:05]} Bg7 {[%emt 0:00:53]} 11. c3 {[%emt 0:02:21]} f5 {[%emt 0:03:21]} 12. exf5 {[%emt 0:14:24]} Bxf5 {[%emt 0:00:50]} 13. Nc2 {[%emt 0:00:05]} Ne7 {[%emt 0:07:47]} 14. Nxe7 {[%emt 0:03:08]} Bxc2 {[%emt 0:03:15]} 15. Qxc2 {[%emt 0:02:53]} Qxe7 {[%emt 0:00:23]} 16. Rd1 {[%emt 0:15:43]} O-O {[%emt 0:05:20]} 17. Qf5 {[%emt 0:13:19]} e4 {[%emt 0:09:55][%cal Ob5b4] Dodges Bd3} 18. Be2 {[%emt 0:01:33] White has an edge.} Qe5 {[%emt 0:04:13]} 19. Qxe5 {[%emt 0:10:33]} Bxe5 {[%emt 0:00:18]} 20. O-O {[%emt 0:00:12]} f5 {[%emt 0:24:24]} 21. f4 {[%emt 0:01:22]} exf3 {[%emt 0:00:08]} 22. Rxf3 {[%emt 0:05:37]} Kg7 {[%emt 0:08:06]} 23. g3 {[%emt 0:05:43]} f4 {[%emt 0:01:51]} 24. Rdf1 {[%emt 0:01:19]} fxg3 {[%emt 0:00:29] The position is equal.} 25. hxg3 {[%emt 0:00:04]} Rxf3 {[%emt 0:00:55]} 26. Rxf3 {[%emt 0:00:04]} Rf8 {[%emt 0:07:19]} 27. Rxf8 {[%emt 0:00:54]} Kxf8 $11 {[%emt 0:00:01] KB-KB} 28. Kg2 {[%emt 0:00:07]} Ke7 {[%emt 0:00:05]} 29. Kf3 {[%emt 0:00:04]} d5 {[%emt 0:00:19]} 30. Bd3 {[%emt 0:00:06]} h6 {[%emt 0:00:08] Weighted Error Value: White=0.09 (flawless) /Black=0.04 (flawless) .  Inaccurate:     	White=3     	Black=1      OK:         	White=3     	Black=9      Best:        	---       	Black=1} 1/2-1/2

[Event "BL 2024-25"]
[Site "Austria"]
[Date "2024.10.12"]
[Round "4.36"]
[White "Tabernig, Bernhard"]
[Black "Ivanisevic, Ivan"]
[Result "0-1"]
[Annotator "TA"]
[ECO "E32"]
[WhiteElo "2256"]
[BlackElo "2519"]
[PlyCount "64"]
[EventDate "2024.08.28"]
[EventType "team-tourn"]
[EventCountry "AUT"]
[SourceTitle "playchess.com"]
[Source "ChessBase"]
[SourceQuality "1"]
[WhiteTeam "Mayrhofen-Zell-Ziller"]
[BlackTeam "Pinggau-Friedberg"]
[TimeControl "40/5400+30:1800+30"]

{[%evp 13,64,6,10,0,10,3,4,0,17,14,8,-9,24,0,5,-10,-4,-15,-13,-76,-58,-163,-94,-168,0,-114,-144,-204,-208,-203,-207,-185,-202,-194,-212,-210,-166,-180,-179,-172,-177,-165,-186,-254,-234,-282,-296,-334,-330,-462,-461,-903,-889]} 1. d4 {[%emt 0:00:03]} Nf6 {[%emt 0:00:06]} 2. c4 {[%emt 0:00:05]} e6 {[%emt 0:00:03]} 3. Nc3 {[%emt 0:00:36]} Bb4 {[%emt 0:00:06]} 4. Qc2 {[%emt 0:00:22]} O-O {[%emt 0:00:47]} 5. a3 {[%emt 0:00:05]} Bxc3+ {[%emt 0:00:05]} 6. Qxc3 {[%emt 0:00:05]} b6 {[%emt 0:00:38]} 7. Bg5 {[%emt 0:00:23]} c5 {[%emt 0:00:42]} 8. Nf3 {[%emt 0:06:15][%cal Od4d5]} h6 {[%emt 0:01:45]} 9. Bh4 {[%emt 0:00:10]} Bb7 {[%emt 0:01:32]} 10. e3 {[%emt 0:01:12] The position is equal.} cxd4 {[%emt 0:03:43]} 11. Qxd4 {[%emt 0:01:25]} Nc6 {[%emt 0:06:16]} 12. Qd1 {[%emt 0:03:34]} g5 {[%emt 0:02:38]} 13. Bg3 {[%emt 0:01:39]} Ne4 {[%emt 0:00:07]} 14. Bd3 {[%emt 0:00:41]} Nxg3 {[%emt 0:00:06]} 15. hxg3 {[%emt 0:00:05]} Qf6 {[%emt 0:00:11]} 16. Bc2 {[%emt 0:06:40]} (16. Qe2 $11) 16... Rfd8 {[%emt 0:04:35][%cal Ob7a6]} 17. Nh2 {[%emt 0:23:21]} (17. Qe2 $15) 17... Ne5 {[%emt 0:09:00]} ({Black should play} 17... Qxb2 $19 18. O-O Rac8 (18... Ne5 19. Rb1 $15)) 18. f4 {[%emt 0:00:25] [#]} (18. O-O $17) 18... Bxg2 $2 {[%emt 0:00:29]} (18... Nxc4 19. Ng4 Qxb2 20. O-O $15) ({Better is} 18... gxf4 $1 $19 19. gxf4 (19. Ng4 $2 Qg7 $17) 19... Nxc4 (19... Bxg2 20. fxe5 Qh4+ 21. Ke2 $16)) 19. fxe5 {[%emt 0:01:13]} (19. Rg1 $1 $11 {was the only way to keep the balance.} Nxc4 20. Ng4 Qxb2 21. Rxg2) 19... Qxe5 $17 {[%emt 0:00:08]} 20. Kf2 {[%emt 0:01:53]} (20. Ng4 $17 Qxg3+ 21. Kd2) 20... Bxh1 $19 {[%emt 0:02:30]} 21. Ng4 {[%emt 0:05:18]} Qxb2 {[%emt 0:01:28] ...Be4 would now be deadly.} 22. Rb1 {[%emt 0:00:40]} Qc3 {[%emt 0:00:46]} (22... Qxa3 23. Qd4 Kf8 24. Rxh1 $16) 23. Rc1 {[%emt 0:03:45] [#]} Qh8 {[%emt 0:10:06] Prevents Bh7+.} 24. Qxh1 {[%emt 0:03:52]} h5 {[%emt 0:00:55]} 25. Qxh5 {[%emt 0:13:33]} Qxh5 {[%emt 0:00:06]} 26. Nf6+ {[%emt 0:00:02] [#]} Kf8 $1 {[%emt 0:00:06]} 27. Nxh5 {[%emt 0:00:04]} Rac8 {[%emt 0:00:05]} 28. Bd3 {[%emt 0:01:59]} (28. Bb3 $142) 28... d5 {[%emt 0:03:46]} 29. Kf3 {[%emt 0:03:49]} Rc5 {[%emt 0:00:25]} 30. Be2 {[%emt 0:03:43]} b5 {[%emt 0:00:49]} 31. Rb1 {[%emt 0:01:33]} dxc4 {[%emt 0:00:07]} 32. Nf6 {[%emt 0:00:14]} (32. g4 $142) 32... Rf5+ {[%emt 0:22:24] Weighted Error Value: White=0.55/Black=0.16 (very precise) .  Missed win:     	---       	Black=1      Mistake:       	White=7     	Black=1      Inaccurate:     	White=1     	Black=1      OK:         	White=6     	Black=13     Best:        	White=2     	Black=2      Strong:       	---       	Black=1} 0-1